fUST/lending_fUST_20250707
["ID","MTS","AMOUNT","RATE_DAILY","PERIOD"]
[370031964,1751851844272,-1000.0,0.00025,25]
[370031965,1751851844281,-160.0,0.00025,10]
[370031966,1751851844290,-200877.75534488,0.00025,2]
[370031967,1751851844299,-12009.60522378,0.00025,2]
[370031968,1751851844309,-2000.0,0.00025,2]
[370031969,1751851844321,-2000.0,0.00025,2]
[370031970,1751851844331,-1973.529521,0.00025,5]
[370031971,1751851844340,-214.03875559,0.00025,3]
[370031972,1751851844350,-837.69501035,0.00025,3]
[370031973,1751851844360,-837.69501035,0.00025,7]
[370031974,1751851844369,-202.915322,0.00025,2]
[370031975,1751851844381,-168.71,0.00025,2]
[370031976,1751851844390,-230.45878613,0.00025,3]
[370031977,1751851844399,-230.45878613,0.00025,7]
[370031978,1751851844409,-160.0,0.00025,3]
[370031979,1751851844419,-160.0,0.00025,7]
[370031980,1751851844429,-3129.41757117,0.00025,3]
[370031981,1751851844440,-215.18120504,0.00025,3]
[370031982,1751851844450,-215.18120504,0.00025,10]
[370031983,1751851844461,-848.15551661,0.00025,3]
[370031984,1751851844471,-848.15551661,0.00025,10]
[370031985,1751851844482,-1150.0,0.00025002,2]
[370031986,1751851844493,-1495.50092716,0.00025004,2]
[370031987,1751851844504,-466.0,0.00025014,2]
[370031988,1751851844514,-1495.50092716,0.00025039,2]
[370031989,1751851844525,-466.0,0.00025042,2]
[370031990,1751851844535,-2408.8,0.00025064,2]
[370031991,1751851844545,-466.0,0.00025069,2]
[370031992,1751851844557,-1495.50092716,0.00025073,2]
[370031993,1751851844574,-466.0,0.00025096,2]
[370031994,1751851844584,-1495.50092716,0.00025108,2]
[370031995,1751851844594,-466.0,0.00025124,2]
[370031996,1751851844604,-1495.50092716,0.00025143,2]
[370031997,1751851844615,-466.0,0.00025151,2]
[370031998,1751851844624,-2408.8,0.00025164,4]
[370031999,1751851844634,-466.0,0.00025179,2]
[370032000,1751851844643,-2000.0,0.000252,2]
[370032001,1751851844652,-4734.18,0.000252,7]
[370032002,1751851844661,-65329.73,0.000252,7]
[370032003,1751851844671,-466.0,0.00025206,2]
[370032004,1751851844681,-300.0,0.00025221,2]
[370032005,1751851844690,-500.0,0.00025221,2]
[370032006,1751851844699,-500.0,0.00025221,2]
[370032007,1751851844709,-501.59291249,0.00025221,2]
[370032008,1751851844720,-1000.0,0.00025221,2]
[370032009,1751851844731,-1002.37238666,0.00025221,2]
[370032010,1751851844741,-500.42383133,0.00025221,2]
[370032011,1751851844752,-1200.0,0.00025221,2]
[370032012,1751851844762,-1001.76193686,0.00025221,2]
[370032013,1751851844777,-503.69021224,0.00025221,2]
[370032014,1751851844788,-503.61122177,0.00025221,2]
[370032015,1751851844798,-501.59288037,0.00025221,2]
[370032016,1751851844808,-1001.43177517,0.00025221,2]
[370032017,1751851844820,-502.91263907,0.00025221,2]
[370032018,1751851844829,-1002.41432564,0.00025221,2]
[370032019,1751851844838,-1000.0,0.00025221,2]
[370032020,1751851844846,-466.0,0.00025233,2]
[370032021,1751851844856,-466.0,0.00025261,2]
[370032022,1751851844865,-2408.8,0.00025264,2]
[370032023,1751851844874,-470.53087109,0.00025288,2]
[370032024,1751851844883,-456.35442,0.000253,60]
[370032025,1751851844892,-2000.0,0.000253,2]
[370032026,1751851844904,-1708.57730567,0.00025312,2]
[370032027,1751851844913,-13135.01319916,0.00025312,7]
[370032028,1751851844922,-1589.0,0.00025312,3]
[370032029,1751851844931,-1778.72283446,0.00025312,3]
[370032030,1751851844940,-20806.58037307,0.00025312,7]
[370032031,1751851844950,-32915.67182923,0.00025312,15]
[370032032,1751851844958,-1524.28853885,0.00025312,14]
[370032033,1751851844967,-1503.94834862,0.00025312,15]
[370032034,1751851844976,-90799.22017127,0.00025312,2]
[370032035,1751851844986,-300.0,0.00025312,2]
[370032036,1751851844995,-3862.4457706,0.00025312,2]
[370032037,1751851845005,-805.91004869,0.00025312,2]
[370032038,1751851845014,-253.59611274,0.00025312,2]
[370032039,1751851845024,-295.48698247,0.00025312,2]
[370032040,1751851845033,-325.47674878,0.00025312,2]
[370032041,1751851845043,-1203.7875131,0.00025312,2]
[370032042,1751851845053,-290.48023276,0.00025312,2]
[370032043,1751851845064,-51483.80601409,0.00025312,2]
[370032044,1751851845073,-634.25146447,0.00025312,2]
[370032045,1751851845082,-1355.08655634,0.00025312,2]
[370032046,1751851845091,-155.88505137,0.00025312,2]
[370032047,1751851845101,-6263.10915784,0.00025312,2]
[370032048,1751851845110,-156.90004146,0.00025312,2]
[370032049,1751851845119,-2375.91340401,0.00025312,2]
[370032050,1751851845129,-13715.32682207,0.00025312,2]
[370032051,1751851845138,-505.21687096,0.00025312,2]
[370032052,1751851845147,-178.45985053,0.00025312,2]
[370032053,1751851845157,-465.86586002,0.00025312,2]
[370032054,1751851845166,-30308.96190282,0.00025312,2]
[370032055,1751851845176,-188.30828761,0.00025312,2]
[370032056,1751851845185,-1390.13980796,0.00025312,2]
[370032057,1751851845195,-5866.75752489,0.00025312,2]
[370032058,1751851845204,-648.16706947,0.00025312,2]
[370032059,1751851845214,-2920.0,0.00025312,2]
[370032060,1751851845223,-383.09331229,0.00025312,2]
[370032061,1751851845233,-200.52145332,0.00025312,2]
[370032062,1751851845243,-1860.58236704,0.00025312,2]
[370032063,1751851845252,-582.82997422,0.00025312,2]
[370032064,1751851845262,-10634.23916172,0.00025312,2]
[370032065,1751851845271,-38924.87747128,0.00025312,2]
[370032066,1751851845281,-222.96571602,0.00025312,15]
[370032067,1751851845290,-237.91205527,0.00025312,10]
[370032068,1751851845299,-192.41330567,0.00025312,12]
[370032069,1751851845309,-1083.86065619,0.00025312,10]
[370032070,1751851845319,-200.0,0.00025312,10]
[370032071,1751851845328,-498.0,0.00025312,7]
[370032072,1751851845337,-153.0310026,0.00025312,7]
[370032073,1751851845346,-608.91532015,0.00025312,15]
[370032074,1751851845356,-10257.22086018,0.00025312,2]
[370032075,1751851845366,-229628.3586094,0.00025312,2]
[370032076,1751851944862,211.34094423,0.000222,69]
[370032077,1751852241537,184.65991128,0.00016438,3]
[370032078,1751852478847,1000.0,0.00027,120]
[370032079,1751852501962,1000.0,0.00027,120]
[370032080,1751852524758,225.084331,0.00013699,2]
[370032081,1751852568655,2337.0,0.00027,120]
[370032082,1751852568819,186.0,0.00016438,3]
[370032083,1751852585220,1000.0,0.00027,120]
[370032084,1751852586589,1635.0,0.000273,120]
[370032085,1751852752867,-156.65427691,0.00018605,2]
[370032086,1751852752888,-527.0,0.00018983,2]
[370032087,1751852752911,-176.10831516,0.00019071,2]
[370032088,1751852752934,-834.2,0.00019165,3]
[370032089,1751852752958,-620.05,0.00019166,3]
[370032090,1751852752979,-241.13,0.00019166,3]
[370032091,1751852753004,-538.90320011,0.00019166,3]
[370032092,1751852816082,-152.82000091,0.00019166,3]
[370032093,1751852827091,-300.0,0.00019165,2]
[370032094,1751852827112,-31.69679898,0.00019166,3]
[370032095,1751852827134,-500.0,0.00019166,2]
[370032096,1751852827157,-500.0,0.00019166,2]
[370032097,1751852827179,-500.0,0.00019166,2]
[370032098,1751852827201,-500.0,0.00019166,2]
[370032099,1751852827223,-500.0,0.00019166,2]
[370032100,1751852827246,-421.12680834,0.00019166,2]
[370032101,1751852827266,-500.0,0.00019166,2]
[370032102,1751852827287,-500.0,0.00019166,2]
[370032103,1751852827306,-500.0,0.00019166,2]
[370032104,1751852827328,-596.85941545,0.00019166,2]
[370032105,1751852827348,-500.0,0.00019166,2]
[370032106,1751852827368,-500.0,0.00019166,2]
[370032107,1751852827390,-500.0,0.00019166,2]
[370032108,1751852827411,-500.0,0.00019166,2]
[370032109,1751852827434,-500.0,0.00019166,2]
[370032110,1751852827456,-500.0,0.00019166,2]
[370032111,1751852827476,-500.0,0.00019166,2]
[370032112,1751852827500,-462.68249383,0.00019166,2]
[370032113,1751852829105,-37.31750617,0.00019166,2]
[370032114,1751852829126,-500.0,0.00019166,2]
[370032115,1751852829146,-500.0,0.00019166,2]
[370032116,1751852829167,-143.79939789,0.00019166,2]
[370032117,1751852846096,-356.20060211,0.00019166,2]
[370032118,1751852846116,-500.0,0.00019166,2]
[370032119,1751852846137,-119.6423235,0.00019166,2]
[370032120,1751852884315,173.0,0.00016438,3]
[370032121,1751852955053,-300.0,0.0001867,2]
[370032122,1751852955074,-424.10474098,0.00018671,2]
[370032123,1751852955094,-500.0,0.00018671,2]
[370032124,1751852955115,-306.10361716,0.00018671,2]
[370032125,1751852957125,-108.02067554,0.00018671,2]
[370032126,1751852957145,-503.23722614,0.00018671,2]
[370032127,1751852957165,-501.7171862,0.00018671,2]
[370032128,1751852957187,-500.0,0.00018671,2]
[370032129,1751852957207,-202.21342249,0.00018671,2]
[370032130,1751852957228,-500.0,0.00018671,2]
[370032131,1751852957248,-592.76971742,0.00018671,2]
[370032132,1751852957268,-500.0,0.00018671,2]
[370032133,1751852957288,-500.0,0.00018671,2]
[370032134,1751852957309,-562.93376734,0.00018671,2]
[370032135,1751852957331,-500.0,0.00018671,2]
[370032136,1751852957352,-500.0,0.00018671,2]
[370032137,1751852957374,-500.0,0.00018671,2]
[370032138,1751852957394,-500.0,0.00018671,2]
[370032139,1751852957414,-500.0,0.00018671,2]
[370032140,1751852957436,-500.0,0.00018671,2]
[370032141,1751852957457,-500.0,0.00018671,2]
[370032142,1751852957478,-500.0,0.00018671,2]
[370032143,1751852957498,-500.0,0.00018671,2]
[370032144,1751852957518,-263.18665234,0.00018671,2]
[370032145,1751852957538,-500.0,0.00018671,2]
[370032146,1751852957559,-500.0,0.00018671,2]
[370032147,1751852957580,-500.0,0.00018671,2]
[370032148,1751852957601,-159.68594154,0.00018671,2]
[370032149,1751852957624,-500.0,0.00018671,2]
[370032150,1751852957644,-500.0,0.00018671,2]
[370032151,1751852957665,-500.0,0.00018671,2]
[370032152,1751852957688,-242.11268084,0.00018671,2]
[370032153,1751852957709,-500.0,0.00018671,2]
[370032154,1751852957730,-500.0,0.00018671,2]
[370032155,1751852957750,-560.442108,0.00018671,2]
[370032156,1751852957770,-180.16896007,0.00018671,2]
[370032157,1751852957790,-594.99190977,0.00018671,2]
[370032158,1751852957810,-500.0,0.00018671,2]
[370032159,1751852957831,-500.0,0.00018671,2]
[370032160,1751852957852,-500.0,0.00018671,2]
[370032161,1751852957873,-500.0,0.00018671,2]
[370032162,1751852957894,-500.0,0.00018671,2]
[370032163,1751852957916,-24900.0,0.00018672,2]
[370032164,1751852957936,-160.0,0.00018959,2]
[370032165,1751852957956,-2492.07600615,0.00019075,2]
[370032166,1751852957976,-217.45,0.00019164,3]
[370032167,1751852957997,-652.36,0.00019164,3]
[370032168,1751852958017,-164.48,0.00019165,3]
[370032169,1751852958039,-500.0,0.00019165,2]
[370032170,1751852958059,-467.90542236,0.00019165,2]
[370032171,1751852958080,-409.41871614,0.00019165,2]
[370032172,1751852958100,-500.0,0.00019165,2]
[370032173,1751852958121,-486.06134359,0.00019165,2]
[370032174,1751852958140,-500.0,0.00019165,2]
[370032175,1751852958160,-18713.11536497,0.00019166,2]
[370032176,1751852958180,-12582.33653824,0.00019167,2]
[370032177,1751852958201,-713.0,0.00019167,2]
[370032178,1751852958222,-464.0025217,0.00019167,2]
[370032179,1751852958243,-460.0,0.00019167,2]
[370032180,1751852958266,-460.0,0.00019167,2]
[370032181,1751852958293,-153.54539287,0.00019167,2]
[370032182,1751852958314,-460.0,0.00019168,2]
[370032183,1751852958335,-460.0,0.00019168,2]
[370032184,1751852958355,-487.22519438,0.00019168,2]
[370032185,1751852958376,-462.05404097,0.00019168,2]
[370032186,1751852958397,-447.01326728,0.00019168,2]
[370032187,1751852958419,-462.88421206,0.00019168,2]
[370032188,1751852958439,-464.66080554,0.00019168,2]
[370032189,1751852958461,-462.49440554,0.00019168,2]
[370032190,1751852958482,-460.0,0.00019168,2]
[370032191,1751852958503,-461.68689152,0.00019168,2]
[370032192,1751852958527,-239.23335591,0.00019168,2]
[370032193,1751852958550,-464.91758963,0.00019168,2]
[370032194,1751852958570,-464.65284332,0.00019168,2]
[370032195,1751852958590,-464.18304618,0.00019168,2]
[370032196,1751852958612,-465.70523006,0.00019168,2]
[370032197,1751852958633,-461.99260826,0.00019168,2]
[370032198,1751852958654,-519.51493717,0.00019168,2]
[370032199,1751852958676,-467.87493534,0.00019168,2]
[370032200,1751852958701,-460.0,0.00019168,2]
[370032201,1751852958723,-463.86559371,0.00019168,2]
[370032202,1751852958743,-460.0,0.00019168,2]
[370032203,1751852958765,-465.6469912,0.00019168,2]
[370032204,1751852958785,-463.51908869,0.00019168,2]
[370032205,1751852958805,-471.13193784,0.00019168,2]
[370032206,1751852958825,-463.06184077,0.00019168,2]
[370032207,1751852958846,-462.45465341,0.00019168,2]
[370032208,1751852958866,-463.20140406,0.00019168,2]
[370032209,1751852958885,-462.71007596,0.00019168,2]
[370032210,1751852958906,-464.36646734,0.00019168,2]
[370032211,1751852958928,-564.79895744,0.00019168,2]
[370032212,1751852958948,-461.81835977,0.00019168,2]
[370032213,1751852958969,-540.90274471,0.00019168,2]
[370032214,1751852958990,-460.0,0.00019168,2]
[370032215,1751852959011,-508.63872682,0.00019168,2]
[370032216,1751852959031,-460.75371233,0.00019168,2]
[370032217,1751852959052,-465.70945499,0.00019168,2]
[370032218,1751852959071,-466.60569318,0.00019168,2]
[370032219,1751852959091,-461.95930814,0.00019168,2]
[370032220,1751852959112,-163.83091992,0.00019168,2]
[370032221,1751852959132,-464.56063845,0.00019169,2]
[370032222,1751852959152,-160.76159041,0.00019169,2]
[370032223,1751852959172,-442.88148184,0.00019169,2]
[370032224,1751852959192,-460.0,0.00019169,2]
[370032225,1751852959212,-460.0,0.00019169,2]
[370032226,1751852959365,-460.0,0.00019169,2]
[370032227,1751852959387,-543.66313854,0.00019169,2]
[370032228,1751852959410,-460.0,0.00019169,2]
[370032229,1751852959434,-823.64,0.00019169,2]
[370032230,1751852959457,-460.0,0.00019169,2]
[370032231,1751852959478,-463.05345705,0.00019169,2]
[370032232,1751852959500,-937.37,0.00019169,2]
[370032233,1751852959523,-470.43515466,0.00019169,2]
[370032234,1751852959544,-1054.46,0.00019169,2]
[370032235,1751852959565,-471.60166495,0.00019169,2]
[370032236,1751852959586,-460.0,0.00019169,2]
[370032237,1751852959607,-460.0,0.00019169,2]
[370032238,1751852959629,-460.0,0.00019169,2]
[370032239,1751852959651,-691.63,0.00019169,2]
[370032240,1751852959674,-938.74,0.00019169,2]
[370032241,1751852959702,-460.0,0.00019169,2]
[370032242,1751852959725,-1240.8,0.00019169,2]
[370032243,1751852959745,-460.0,0.00019169,2]
[370032244,1751852959768,-460.0,0.00019169,2]
[370032245,1751852959789,-711.08,0.00019169,2]
[370032246,1751852959809,-460.0,0.00019169,2]
[370032247,1751852959828,-160.0,0.0001917,2]
[370032248,1751852959848,-160.0,0.0001917,2]
[370032249,1751852959868,-467.04869053,0.0001917,2]
[370032250,1751852959888,-435.20774071,0.0001917,2]
[370032251,1751852959912,-657.98,0.0001917,2]
[370032252,1751852959935,-462.75050987,0.0001917,2]
[370032253,1751852959956,-484.16571118,0.0001917,2]
[370032254,1751852959976,-570.92809611,0.0001917,2]
[370032255,1751852959998,-460.0,0.0001917,2]
[370032256,1751852960022,-460.0,0.0001917,2]
[370032257,1751852960043,-465.75154637,0.0001917,2]
[370032258,1751852960065,-500.0,0.0001917,2]
[370032259,1751852960088,-460.89668447,0.0001917,2]
[370032260,1751852960108,-465.40722782,0.0001917,2]
[370032261,1751852960128,-155.508,0.0001917,2]
[370032262,1751852960148,-460.0,0.00019171,2]
[370032263,1751852960168,-466.3287997,0.00019171,2]
[370032264,1751852960191,-460.0,0.00019171,2]
[370032265,1751852960211,-461.90029699,0.00019171,2]
[370032266,1751852960231,-460.0,0.00019171,2]
[370032267,1751852960250,-460.0,0.00019171,2]
[370032268,1751852960270,-252.19145158,0.00019171,2]
[370032269,1751852960291,-463.48560619,0.00019171,2]
[370032270,1751852960311,-467.53287425,0.00019171,2]
[370032271,1751852960332,-464.54558336,0.00019171,2]
[370032272,1751852960352,-465.32339842,0.00019171,2]
[370032273,1751852960372,-460.0,0.00019171,2]
[370032274,1751852960392,-460.0,0.00019171,2]
[370032275,1751852960413,-460.0,0.00019171,2]
[370032276,1751852960434,-469.21226393,0.00019171,2]
[370032277,1751852960454,-466.25482534,0.00019171,2]
[370032278,1751852960476,-460.0,0.00019171,2]
[370032279,1751852960497,-465.9587778,0.00019171,2]
[370032280,1751852960516,-463.26073732,0.00019171,2]
[370032281,1751852960537,-462.63517023,0.00019171,2]
[370032282,1751852960557,-460.0,0.00019171,2]
[370032283,1751852960578,-460.0,0.00019171,2]
[370032284,1751852960599,-463.63903155,0.00019171,2]
[370032285,1751852960619,-466.10966927,0.00019171,2]
[370032286,1751852960638,-461.32473316,0.00019171,2]
[370032287,1751852960657,-466.02752032,0.00019171,2]
[370032288,1751852960680,-460.0,0.00019171,2]
[370032289,1751852960701,-460.83675187,0.00019171,2]
[370032290,1751852960722,-465.0721745,0.00019171,2]
[370032291,1751852960741,-463.69613485,0.00019171,2]
[370032292,1751852960761,-461.62389394,0.00019171,2]
[370032293,1751852960782,-466.86751575,0.00019171,2]
[370032294,1751852960802,-460.0,0.00019171,2]
[370032295,1751852960822,-460.0,0.00019171,2]
[370032296,1751852960843,-460.0,0.00019171,2]
[370032297,1751852960863,-460.0,0.00019171,2]
[370032298,1751852960884,-460.0,0.00019171,2]
[370032299,1751852960905,-460.0,0.00019171,2]
[370032300,1751852960925,-460.85709621,0.00019171,2]
[370032301,1751852960945,-460.0,0.00019171,2]
[370032302,1751852960967,-460.0,0.00019171,2]
[370032303,1751852960987,-464.42449468,0.00019171,2]
[370032304,1751852961009,-509.91,0.00019171,2]
[370032305,1751852961037,-468.19593201,0.00019171,2]
[370032306,1751852961057,-470.38579261,0.00019171,2]
[370032307,1751852961077,-460.0,0.00019171,2]
[370032308,1751852961098,-460.0,0.00019171,2]
[370032309,1751852961118,-460.0,0.00019171,2]
[370032310,1751852961139,-460.0,0.00019171,2]
[370032311,1751852961159,-463.17239067,0.00019171,2]
[370032312,1751852961180,-464.25342877,0.00019171,2]
[370032313,1751852961200,-460.0,0.00019171,2]
[370032314,1751852961220,-307.91108206,0.00019171,2]
[370032315,1751852961240,-461.79844194,0.00019171,2]
[370032316,1751852961260,-469.10102449,0.00019171,2]
[370032317,1751852961281,-460.0,0.00019171,2]
[370032318,1751852961301,-460.0,0.00019171,2]
[370032319,1751852961321,-460.0,0.00019171,2]
[370032320,1751852961343,-460.0,0.00019171,2]
[370032321,1751852961363,-460.0,0.00019171,2]
[370032322,1751852961383,-465.50412657,0.00019171,2]
[370032323,1751852961405,-469.41965697,0.00019171,2]
[370032324,1751852961426,-460.0,0.00019171,2]
[370032325,1751852961447,-462.77108338,0.00019171,2]
[370032326,1751852961467,-467.50798812,0.00019171,2]
[370032327,1751852961487,-460.0,0.00019171,2]
[370032328,1751852961507,-1085.47,0.00019171,2]
[370032329,1751852961527,-475.04438112,0.00019171,2]
[370032330,1751852961548,-460.0,0.00019171,2]
[370032331,1751852961568,-467.51891565,0.00019171,2]
[370032332,1751852961592,-460.0,0.00019171,2]
[370032333,1751852961613,-460.57627507,0.00019171,2]
[370032334,1751852961634,-500.0,0.00019171,2]
[370032335,1751852961654,-460.0,0.00019171,2]
[370032336,1751852961674,-503.47331785,0.00019171,2]
[370032337,1751852961700,-466.19431274,0.00019171,2]
[370032338,1751852961721,-467.25351829,0.00019171,2]
[370032339,1751852961742,-460.0,0.00019171,2]
[370032340,1751852961764,-333.06657989,0.00019171,2]
[370032341,1751852961784,-460.0,0.00019171,2]
[370032342,1751852961804,-463.18979999,0.00019171,2]
[370032343,1751852961824,-460.0,0.00019171,2]
[370032344,1751852961846,-462.26407812,0.00019171,2]
[370032345,1751852961980,-460.0,0.00019171,2]
[370032346,1751852962001,-463.37701894,0.00019171,2]
[370032347,1751852962022,-460.0,0.00019171,2]
[370032348,1751852962042,-460.0,0.00019171,2]
[370032349,1751852962061,-460.0,0.00019171,2]
[370032350,1751852962083,-466.09245594,0.00019171,2]
[370032351,1751852962104,-460.0,0.00019171,2]
[370032352,1751852962125,-460.0,0.00019171,2]
[370032353,1751852962144,-461.02147379,0.00019171,2]
[370032354,1751852962165,-460.0,0.00019171,2]
[370032355,1751852962185,-460.0,0.00019171,2]
[370032356,1751852962206,-464.61644259,0.00019171,2]
[370032357,1751852962226,-465.82080286,0.00019171,2]
[370032358,1751852962247,-460.0,0.00019171,2]
[370032359,1751852962269,-460.0,0.00019171,2]
[370032360,1751852962290,-460.0,0.00019171,2]
[370032361,1751852962311,-460.0,0.00019171,2]
[370032362,1751852962335,-460.0,0.00019171,2]
[370032363,1751852962356,-173.91945413,0.00019171,2]
[370032364,1751852962377,-505.99199413,0.00019173,2]
[370032365,1751852962397,-500.0,0.00019173,2]
[370032366,1751852962419,-504.42981492,0.00019173,2]
[370032367,1751852962440,-508.18898464,0.00019173,2]
[370032368,1751852962463,-502.74063877,0.00019173,2]
[370032369,1751852962485,-500.0,0.00019173,2]
[370032370,1751852962506,-230.45878613,0.00019173,2]
[370032371,1751852962530,-160.0,0.00019173,2]
[370032372,1751852962551,-215.18120504,0.00019173,2]
[370032373,1751852962571,-214.03875559,0.00019173,2]
[370032374,1751852962594,-837.69501035,0.00019173,2]
[370032375,1751852962614,-848.15551661,0.00019173,2]
[370032376,1751852962636,-160.0,0.00019173,2]
[370032377,1751852962657,-460.0,0.00019174,2]
[370032378,1751852962683,-460.0,0.00019174,2]
[370032379,1751852962704,-460.0,0.00019174,2]
[370032380,1751852962724,-472.04316484,0.00019174,2]
[370032381,1751852962744,-461.71300539,0.00019174,2]
[370032382,1751852962765,-526.97464806,0.00019174,2]
[370032383,1751852962786,-466.93126224,0.00019174,2]
[370032384,1751852962807,-460.0,0.00019174,2]
[370032385,1751852962828,-461.67186077,0.00019174,2]
[370032386,1751852962850,-574.07229576,0.00019174,2]
[370032387,1751852962870,-461.60513375,0.00019174,2]
[370032388,1751852962890,-461.66007346,0.00019174,2]
[370032389,1751852962910,-461.30470505,0.00019174,2]
[370032390,1751852962930,-460.42803688,0.00019174,2]
[370032391,1751852962950,-460.0,0.00019174,2]
[370032392,1751852962969,-460.0,0.00019174,2]
[370032393,1751852962990,-462.46332239,0.00019174,2]
[370032394,1751852963009,-460.0,0.00019174,2]
[370032395,1751852963029,-462.34862092,0.00019174,2]
[370032396,1751852963049,-460.0,0.00019174,2]
[370032397,1751852963070,-462.60198356,0.00019174,2]
[370032398,1751852963092,-460.0,0.00019174,2]
[370032399,1751852963113,-460.0,0.00019174,2]
[370032400,1751852963134,-469.33820389,0.00019174,2]
[370032401,1751852963155,-461.97719282,0.00019174,2]
[370032402,1751852963176,-468.93635739,0.00019174,2]
[370032403,1751852963197,-460.0,0.00019174,2]
[370032404,1751852963218,-460.0,0.00019174,2]
[370032405,1751852963238,-463.35087079,0.00019174,2]
[370032406,1751852963260,-460.0,0.00019174,2]
[370032407,1751852963280,-464.00976215,0.00019174,2]
[370032408,1751852963302,-460.0,0.00019174,2]
[370032409,1751852963323,-460.0,0.00019174,2]
[370032410,1751852963344,-460.0,0.00019174,2]
[370032411,1751852963366,-460.0,0.00019174,2]
[370032412,1751852963389,-500.0,0.00019174,2]
[370032413,1751852963410,-500.0,0.00019174,2]
[370032414,1751852963432,-500.0,0.00019174,2]
[370032415,1751852963454,-500.0,0.00019174,2]
[370032416,1751852963475,-460.0,0.00019174,2]
[370032417,1751852963499,-1917.01,0.00019174,2]
[370032418,1751852963520,-585.8,0.00019174,2]
[370032419,1751852963541,-460.0,0.00019174,2]
[370032420,1751852963566,-575.53,0.00019174,2]
[370032421,1751852963587,-460.0,0.00019174,2]
[370032422,1751852963606,-500.0,0.00019175,2]
[370032423,1751852963626,-463.52607785,0.00019175,2]
[370032424,1751852963647,-460.0,0.00019175,2]
[370032425,1751852963670,-472.5873368,0.00019175,2]
[370032426,1751852963698,-460.0,0.00019175,2]
[370032427,1751852963718,-460.0,0.00019175,2]
[370032428,1751852963741,-461.30107922,0.00019175,2]
[370032429,1751852963764,-466.53446251,0.00019175,2]
[370032430,1751852963784,-460.0,0.00019175,2]
[370032431,1751852963804,-560.95220982,0.00019175,2]
[370032432,1751852963824,-240.85617333,0.00019175,2]
[370032433,1751852963845,-460.0,0.00019175,2]
[370032434,1751852963865,-460.0,0.00019175,2]
[370032435,1751852963885,-460.0,0.00019175,2]
[370032436,1751852963906,-460.0,0.00019175,2]
[370032437,1751852963930,-465.6713392,0.00019175,2]
[370032438,1751852963953,-504.46050103,0.00019175,2]
[370032439,1751852963976,-460.0,0.00019175,2]
[370032440,1751852963999,-463.09159219,0.00019175,2]
[370032441,1751852964022,-460.0,0.00019175,2]
[370032442,1751852964045,-464.71632842,0.00019175,2]
[370032443,1751852964068,-461.67916444,0.00019175,2]
[370032444,1751852964089,-460.0,0.00019175,2]
[370032445,1751852964109,-460.0,0.00019175,2]
[370032446,1751852964130,-463.81026411,0.00019175,2]
[370032447,1751852964150,-541.96470284,0.00019175,2]
[370032448,1751852964172,-462.29544364,0.00019175,2]
[370032449,1751852964194,-462.88896733,0.00019175,2]
[370032450,1751852964213,-151.73090451,0.00019175,2]
[370032451,1751852964233,-461.60265784,0.00019175,2]
[370032452,1751852964254,-461.30451667,0.00019175,2]
[370032453,1751852964274,-460.0,0.00019175,2]
[370032454,1751852964295,-460.0,0.00019175,2]
[370032455,1751852964317,-460.0,0.00019175,2]
[370032456,1751852964339,-461.56399696,0.00019175,2]
[370032457,1751852964360,-460.0,0.00019175,2]
[370032458,1751852964381,-461.44191423,0.00019175,2]
[370032459,1751852964518,-460.0,0.00019175,2]
[370032460,1751852964541,-460.0,0.00019175,2]
[370032461,1751852964562,-355.0955615,0.00019175,2]
[370032462,1751852964584,-460.0,0.00019175,2]
[370032463,1751852964604,-464.32893636,0.00019175,2]